fUST/lending_fUST_20240603
["ID","MTS","AMOUNT","RATE_DAILY","PERIOD"]
[328467433,1717422191164,-162.90768691,0.00021303,2]
[328467434,1717422191186,-212.7243,0.00021304,2]
[328467435,1717422191207,-1454.38608714,0.00021304,10]
[328467436,1717422191229,-10476.6863812,0.00021305,2]
[328467437,1717422191249,-500.0,0.00021313,2]
[328467438,1717422191270,-500.0,0.00021587,2]
[328467439,1717422191291,-500.0,0.00021861,2]
[328467440,1717422210409,-500.0,0.00022135,2]
[328467441,1717422210433,-164.20122882,0.00022309,2]
[328467442,1717422210456,-1194.49431593,0.00022312,2]
[328467443,1717422329164,-6440.83,0.00022312,2]
[328467446,1717422526610,626.07620418,9.999e-05,2]
[328467449,1717422547198,-10476.6863812,0.00020096,2]
[328467450,1717422547219,-897.68664681,0.00020096,2]
[328467451,1717422547241,-2708.83090649,0.00020097,2]
[328467452,1717422547262,-292.14570031,0.00020099,2]
[328467453,1717422547287,-197.436199,0.00020841,2]
[328467454,1717422547307,-521.444259,0.00021313,2]
[328467455,1717422547326,-394.3509307,0.00021429,2]
[328467456,1717422547348,-164.20122881,0.00022213,2]
[328467457,1717422547509,-50242.62719436,0.00022311,2]
[328467458,1717422547541,-17264.67568407,0.00022312,2]
[328467459,1717422547562,-500.0,0.00022409,2]
[328467460,1717422547584,-509.558092,0.00022683,2]
[328467461,1717422547603,-9200.6864968,0.00023333,4]
[328467462,1717422547627,-382.36864124,0.00023829,2]
[328467463,1717422547647,-3436.12236903,0.0002383,2]
[328467464,1717422547669,-250.0,0.00024124,2]
[328467465,1717422547689,-3985.3514716,0.00024503,2]
[328467466,1717422547711,-569.04411498,0.00024503,10]
[328467467,1717422547731,-447.39403313,0.00024503,2]
[328467468,1717422547752,-500.0,0.00025323,2]
[328467469,1717422547772,-623.80648603,0.00025467,2]
[328467470,1717422547795,-164.20122881,0.00025557,2]
[328467471,1717422547814,-13127.22144563,0.0002557,30]
[328467472,1717422549145,-585.79288858,0.0002557,30]
[328467473,1717422560187,-292.89644429,0.0002557,30]
[328467474,1717422563134,-454.06872509,0.0002557,30]
[328467475,1717422566220,-360.26362904,0.0002557,30]
[328467476,1717422572154,-845.11231143,0.0002557,30]
[328467477,1717422572176,-166.666666,0.00026,2]
[328467478,1717422617371,457.17016607,0.00026,2]
[328467479,1717422621679,140.91130371,0.0002347,2]
[328467480,1717422621702,310.34909067,0.0002347,2]
[328467547,1717422632974,-478.04023331,0.0002347,2]
[328467548,1717422632984,-151.353,0.00025772,2]
[328467549,1717422632994,-420.75281374,0.00026,2]
[328467550,1717422633003,-7458.94652043,0.0002649,2]
[328467551,1717422633012,-150.0,0.000265,2]
[328467552,1717422633021,-2048.77560674,0.000266,2]
[328467553,1717422633031,-5789.14,0.0002679,3]
[328467554,1717422633041,-4824.28,0.0002679,3]
[328467555,1717422633050,-4020.23,0.0002679,3]
[328467556,1717422633060,-3350.2,0.0002679,3]
[328467557,1717422633069,-1901.95956528,0.00026798,2]
[328467558,1717422633080,-2034.77313841,0.00026798,2]
[328467559,1717422633090,-275.3142072,0.00026798,2]
[328467560,1717422633100,-162.55453489,0.00026798,2]
[328467561,1717422633111,-322.557,0.00026798,2]
[328467562,1717422633119,-665.61160227,0.00026798,10]
[328467563,1717422633129,-191.9180545,0.00026798,2]
[328467564,1717422633138,-595.37695854,0.00026798,2]
[328467565,1717422633147,-897.68664681,0.00026798,2]
[328467566,1717422633157,-5443.8156092,0.00026798,2]
[328467567,1717422633167,-19714.50286479,0.00026798,2]
[328467568,1717422633177,-517.12000312,0.00026799,2]
[328467569,1717422633187,-644.12128087,0.00026799,2]
[328467570,1717422633196,-334.31816256,0.00026799,2]
[328467571,1717422633205,-391.75355443,0.00026799,2]
[328467572,1717422633215,-500.0,0.00026799,2]
[328467573,1717422633224,-500.0,0.00026799,2]
[328467574,1717422633234,-500.0,0.00026799,2]
[328467575,1717422633243,-500.0,0.00026799,2]
[328467576,1717422633252,-282.36307847,0.00026799,2]
[328467577,1717422633262,-2596.33086374,0.00026799,2]
[328467578,1717422633273,-25947.43849513,0.000268,7]
[328467579,1717422633283,-17376.77044761,0.000268,2]
[328467728,1717422640348,-2791.83,0.0002679,3]
[328467730,1717422640358,-148805.61572858,0.000268,2]
[328467747,1717422640538,-34039.92531014,0.000268,2]
[328467749,1717422640551,-187.5,0.00026849,2]
[328467752,1717422640561,-712.5,0.00026849,2]
[328467753,1717422640570,-283.78,0.000269,3]
[328467755,1717422640580,-283.78,0.000269,3]
[328467757,1717422640589,-283.78,0.000269,3]
[328467759,1717422640598,-283.78,0.000269,3]
[328467761,1717422640607,-283.78,0.000269,3]
[328467763,1717422640619,-283.78,0.000269,3]
[328467765,1717422640628,-283.78,0.000269,3]
[328467767,1717422640637,-283.78,0.000269,3]
[328467769,1717422640647,-283.78,0.000269,3]
[328467771,1717422640656,-283.78,0.000269,3]
[328467773,1717422640666,-283.78,0.000269,3]
[328467775,1717422640675,-283.78,0.000269,3]
[328467777,1717422640685,-283.78,0.000269,3]
[328467779,1717422640694,-283.78,0.000269,3]
[328467781,1717422640703,-283.78,0.000269,3]
[328467783,1717422640713,-283.78,0.000269,3]
[328467785,1717422640723,-283.78,0.000269,3]
[328467787,1717422640733,-283.78,0.000269,3]
[328467789,1717422640744,-283.78,0.000269,3]
[328467791,1717422640753,-283.78,0.000269,3]
[328467793,1717422640763,-7364.09015398,0.00027,2]
[328467795,1717422640772,-153.14662068,0.00027046,2]
[328467797,1717422640782,-153.14662068,0.00027145,2]
[328467799,1717422640792,-153.14662068,0.00027333,2]
[328467801,1717422640801,-153.14662068,0.00027355,2]
[328467803,1717422640811,-153.14662068,0.00027457,2]
[328467805,1717422640820,-153.74860023,0.00027526,2]
[328467807,1717422640830,-156.21143696,0.00027559,2]
[328467809,1717422640840,-153.14662068,0.00027629,2]
[328467811,1717422640850,-283.78,0.000277,3]
[328467813,1717422640860,-283.78,0.000277,3]
[328467815,1717422640872,-283.78,0.000277,3]
[328467817,1717422640882,-283.78,0.000277,3]
[328467819,1717422640891,-283.78,0.000277,3]
[328467821,1717422640901,-283.78,0.000277,3]
[328467823,1717422640911,-283.78,0.000277,3]
[328467825,1717422640920,-283.78,0.000277,3]
[328467827,1717422640929,-283.78,0.000277,3]
[328467829,1717422640939,-283.78,0.000277,3]
[328467831,1717422640949,-283.78,0.000277,3]
[328467833,1717422640959,-283.78,0.000277,3]
[328467835,1717422640969,-283.78,0.000277,3]
[328467837,1717422640979,-283.78,0.000277,3]
[328467839,1717422640988,-283.78,0.000277,3]
[328467841,1717422640997,-283.78,0.000277,3]
[328467843,1717422641007,-156.21143696,0.00027703,2]
[328467845,1717422641017,-153.14662068,0.00027721,2]
[328467847,1717422641027,-156.21143696,0.00027833,2]
[328467849,1717422641036,-156.21143696,0.00027852,2]
[328467850,1717422641046,-9498.42860655,0.00028,2]
[328467852,1717422641055,-154.8915759,0.00028,2]
[328467854,1717422641065,-831.11261549,0.00028,2]
[328467856,1717422641074,-253.74198634,0.00028,2]
[328467858,1717422641084,-156.21143696,0.00028108,2]
[328467860,1717422641095,-153.14662068,0.00028191,2]
[328467862,1717422641104,-153.14662068,0.0002834,2]
[328467864,1717422641116,-153.14662068,0.00028372,2]
[328467866,1717422641126,-156.21143696,0.00028413,2]
[328467868,1717422641136,-929.30062769,0.0002847,2]
[328467870,1717422641146,-283.78,0.000285,3]
[328467872,1717422641155,-283.78,0.000285,3]
[328467874,1717422641164,-283.78,0.000285,3]
[328467876,1717422641174,-283.78,0.000285,3]
[328467878,1717422641184,-283.78,0.000285,3]
[328467880,1717422641195,-283.78,0.000285,3]
[328467882,1717422641205,-283.78,0.000285,3]
[328467884,1717422641216,-283.78,0.000285,3]
[328467886,1717422641226,-283.78,0.000285,3]
[328467888,1717422641236,-283.78,0.000285,3]
[328467890,1717422641246,-283.78,0.000285,3]
[328467892,1717422641255,-283.78,0.000285,3]
[328467894,1717422641266,-283.78,0.000285,3]
[328467896,1717422641276,-283.78,0.000285,3]
[328467898,1717422641285,-283.78,0.000285,3]
[328467900,1717422641295,-283.78,0.000285,3]
[328467902,1717422641304,-153.14662068,0.00028589,2]
[328467904,1717422641314,-88888.0,0.000288,3]
[328467906,1717422641323,-5255.1088523,0.000289,2]
[328467908,1717422641335,-2405.1888141,0.000289,2]
[328467910,1717422641348,-1790.00368819,0.000289,2]
[328467912,1717422641360,-1742.46207372,0.000289,2]
[328467914,1717422641372,-164.20122881,0.000289,2]
[328467916,1717422641381,-153.0,0.00028967,2]
[328467918,1717422641390,-153.0,0.00028967,2]
[328467920,1717422641400,-153.0,0.00028967,2]
[328467922,1717422641409,-153.0,0.00028967,2]
[328467924,1717422641419,-1101.48257344,0.00028998,2]
[328468187,1717422643831,-1963.87755398,0.00028998,2]
[328468189,1717422643841,-215.41652496,0.00028998,2]
[328468191,1717422643850,-514.44445534,0.00028998,2]
[328468193,1717422643860,-495.77179702,0.00028998,2]
[328468195,1717422643870,-231.58546758,0.00028998,2]
[328468197,1717422643880,-42862.83502066,0.00028998,2]
[328468199,1717422643890,-1339.54394266,0.00028999,2]
[328468201,1717422643899,-404.96026001,0.00028999,2]
[328468203,1717422643908,-10330.18649419,0.00028999,2]
[328468205,1717422643920,-6217.36933301,0.00028999,2]
[328468252,1717422645493,-1338.85517175,0.00028999,2]
[328468253,1717422645503,-6859.12351754,0.00029,7]
[328468254,1717422645512,-97340.69369088,0.00029,30]
[328468278,1717422647473,-649.13818402,0.00029,30]
[328468280,1717422647486,-806.66035076,0.00029,30]
[328468293,1717422691818,172.28512439,0.00022311,2]
[328468294,1717422691841,302.0,0.00022311,2]
[328468319,1717423175685,161.01931435,9.9e-05,2]
[328468334,1717423183932,273.37336231,9.9e-05,2]
[328468335,1717423192773,273.37336231,9.9e-05,2]
[328468336,1717423200863,273.37336231,9.9e-05,2]
[328468337,1717423216778,273.37336231,9.9e-05,2]
[328468338,1717423224789,273.37336231,9.9e-05,2]
[328468339,1717423233107,273.37336231,9.9e-05,2]
[328468345,1717423647157,-292.14570031,0.00021749,2]
[328468346,1717423647179,-500.0,0.00022311,2]
[328468347,1717423647201,-500.0,0.00022311,2]
[328468348,1717423647222,-500.0,0.00022311,2]
[328468349,1717423647250,-500.0,0.00022311,2]
[328468350,1717423647273,-500.0,0.00022311,2]
[328468351,1717423647296,-500.0,0.00022311,2]
[328468352,1717423647318,-500.0,0.00022311,2]
[328468353,1717423647339,-500.0,0.00022311,2]
[328468354,1717423647361,-500.0,0.00022311,2]
[328468355,1717423647383,-500.0,0.00022311,2]
[328468356,1717423647404,-500.0,0.00022311,2]
[328468357,1717423647426,-500.0,0.00022311,2]
[328468358,1717423647447,-500.0,0.00022311,2]
[328468359,1717423647468,-500.0,0.00022311,2]
[328468360,1717423647491,-500.0,0.00022311,2]
[328468361,1717423647511,-500.0,0.00022311,2]
[328468362,1717423647532,-258.96,0.00022585,2]
[328468363,1717423647553,-500.0,0.00022585,2]
[328468364,1717423647576,-500.0,0.00022585,2]
[328468365,1717423647599,-500.0,0.00022585,2]
[328468366,1717423647621,-500.0,0.00022585,2]
[328468367,1717423647643,-500.0,0.00022585,2]
[328468368,1717423647665,-500.0,0.00022585,2]
[328468369,1717423647686,-500.0,0.00022585,2]
[328468370,1717423647707,-500.0,0.00022585,2]
[328468371,1717423647729,-500.0,0.00022585,2]
[328468372,1717423647752,-500.0,0.00022585,2]
[328468373,1717423647780,-425.2143031,0.00022585,2]
[328468374,1717423647801,-644.39,0.00022585,2]
[328468375,1717423647822,-394.3509307,0.00022648,2]
[328468376,1717423647843,-500.0,0.00022859,2]
[328468377,1717423647868,-500.0,0.00022859,2]
[328468378,1717423647890,-389.19,0.00022859,2]
[328468379,1717423647912,-278.06,0.00022859,2]
[328468380,1717423647934,-625.5,0.00022859,2]
[328468381,1717423647955,-184.429459,0.00022862,2]
[328468382,1717423647976,-154.87609912,0.00023132,2]
[328468383,1717423647997,-500.0,0.00023133,2]
[328468384,1717423648019,-500.0,0.00023133,2]
[328468385,1717423648039,-200.01,0.00023407,2]
[328468386,1717423648060,-500.0,0.00024502,2]
[328468387,1717423648081,-500.0,0.00024502,2]
[328468388,1717423648101,-500.0,0.00024502,2]
[328468389,1717423648121,-500.0,0.00024502,2]
[328468390,1717423648142,-392.77639507,0.00024502,2]
[328468391,1717423648163,-166.666666,0.00024574,2]
[328468392,1717423648185,-168.453651,0.00024683,2]
[328468393,1717423648207,-24900.0,0.0002474,2]
[328468394,1717423648227,-195.53547513,0.00024776,2]
[328468395,1717423648250,-2313.0777064,0.0002491,2]
[328468396,1717423648270,-401.69036933,0.00025204,2]
[328468397,1717423648289,-154.87609912,0.00025204,2]
[328468398,1717423648310,-166.666666,0.00025244,2]
[328468399,1717423648330,-497.0,0.00025772,2]
[328468400,1717423648351,-166.666666,0.00025914,2]
[328468401,1717423648372,-457.13252986,0.00026,2]
[328468402,1717423648394,-166.666666,0.00026,2]
[328468403,1717423648416,-166.666666,0.00026584,2]
[328468404,1717423648438,-162.5,0.00026849,2]
[328468405,1717423648459,-676.875,0.00026849,2]
[328468406,1717423648481,-153.13,0.000269,3]
[328468407,1717423648506,-153.13,0.000269,3]
[328468408,1717423648671,-153.13,0.000269,3]
[328468409,1717423648694,-153.13,0.000269,3]
[328468410,1717423648718,-153.13,0.000269,3]
[328468411,1717423648746,-153.13,0.000269,3]
[328468412,1717423648769,-153.13,0.000269,3]
[328468413,1717423648795,-153.13,0.000269,3]
[328468414,1717423648818,-153.13,0.000269,3]
[328468415,1717423648839,-153.13,0.000269,3]
[328468416,1717423648861,-153.13,0.000269,3]
[328468417,1717423648884,-153.13,0.000269,3]
[328468418,1717423648906,-153.13,0.000269,3]
[328468419,1717423648928,-153.13,0.000269,3]
[328468420,1717423648949,-153.13,0.000269,3]
[328468421,1717423648971,-153.13,0.000269,3]
[328468422,1717423648996,-153.13,0.000269,3]
[328468423,1717423649017,-569.6134939,0.000269,2]
[328468424,1717423649039,-150.90945433,0.00027106,2]
[328468425,1717423649060,-157.12445498,0.00027122,2]
[328468426,1717423649082,-476.5358803,0.00027222,2]
[328468427,1717423649103,-157.12445498,0.00027239,2]
[328468428,1717423649124,-166.666666,0.00027254,2]
[328468429,1717423649144,-500.0,0.00027318,2]
[328468430,1717423649163,-500.0,0.00027318,2]
[328468431,1717423649183,-500.0,0.00027318,2]
[328468432,1717423649204,-500.0,0.00027318,2]
[328468433,1717423649225,-500.0,0.00027318,2]
[328468434,1717423649250,-500.0,0.00027318,2]
[328468435,1717423649271,-615.67,0.00027318,2]
[328468436,1717423649292,-525.71487561,0.00027318,2]
[328468437,1717423649313,-500.0,0.00027318,2]
[328468438,1717423649334,-500.0,0.00027318,2]
[328468439,1717423649356,-500.0,0.00027318,2]
[328468440,1717423649376,-500.0,0.00027318,2]
[328468441,1717423649398,-500.0,0.00027318,2]
[328468442,1717423649418,-500.0,0.00027318,2]
[328468443,1717423649439,-500.0,0.00027318,2]
[328468444,1717423649460,-500.0,0.00027318,2]
[328468445,1717423649480,-300.0,0.00027318,2]
[328468446,1717423649505,-500.0,0.00027318,2]
[328468447,1717423649526,-500.0,0.00027318,2]
[328468448,1717423649548,-172.46311844,0.00027318,2]
[328468450,1717423768122,166.666666,0.00025978,2]
[328468451,1717423827661,193.59696304,0.00025218,2]
[328468452,1717423827684,186.14536623,0.00025218,2]
[328468667,1717423833376,448.31920513,0.00025978,2]
[328469250,1717423839289,-313.70092297,0.00025978,2]
[328469253,1717423839301,-153.15,0.000266,3]
[328469255,1717423839312,-153.15,0.000266,3]
[328469257,1717423839323,-153.15,0.000266,3]
[328469259,1717423839333,-153.15,0.000266,3]
[328469261,1717423839344,-153.15,0.000266,3]
[328469263,1717423839356,-153.15,0.000266,3]
[328469265,1717423839366,-153.15,0.000266,3]
[328469267,1717423839377,-153.15,0.000266,3]
[328469269,1717423839388,-153.15,0.000266,3]
[328469288,1717423839562,-153.15,0.000266,3]
[328469291,1717423839578,-153.15,0.000266,3]
[328469293,1717423839587,-153.15,0.000266,3]
[328469295,1717423839597,-153.15,0.000266,3]
[328469297,1717423839607,-153.15,0.000266,3]
[328469299,1717423839617,-154.11931949,0.00027045,2]
[328469301,1717423839626,-154.11931949,0.00027231,2]
[328469303,1717423839637,-327.53688156,0.00027318,2]
[328469305,1717423839647,-500.0,0.00027318,2]
[328469307,1717423839656,-500.0,0.00027318,2]
[328469310,1717423839666,-275.41,0.00027318,2]
[328469312,1717423839676,-483.96203151,0.00027318,2]
[328469314,1717423839685,-500.0,0.00027318,2]
[328469316,1717423839696,-551.13,0.00027318,2]
[328469318,1717423839705,-317.27820277,0.00027318,2]
[328469729,1717423843635,-263.59179723,0.00027318,2]
[328469731,1717423843646,-500.0,0.00027318,2]
[328469733,1717423843656,-500.0,0.00027318,2]
[328469735,1717423843665,-500.0,0.00027318,2]
[328469737,1717423843676,-500.0,0.00027318,2]
[328469739,1717423843686,-527.57570399,0.00027318,2]
[328469741,1717423843696,-617.97496401,0.00027318,2]
[328469743,1717423843705,-500.0,0.00027318,2]
[328469745,1717423843714,-500.0,0.00027318,2]
[328469747,1717423843723,-638.88857326,0.00027323,2]
[328469749,1717423843733,-157.12445498,0.0002737,2]
[328469750,1717423843743,-154.11931949,0.00027431,2]
[328469751,1717423843753,-153.15,0.000275,3]
[328469752,1717423843763,-153.15,0.000275,3]
[328469753,1717423843773,-153.15,0.000275,3]
[328469754,1717423843782,-153.15,0.000275,3]
[328469755,1717423843792,-153.15,0.000275,3]
[328469756,1717423843802,-153.15,0.000275,3]
[328469757,1717423843811,-153.15,0.000275,3]
[328469758,1717423843821,-153.15,0.000275,3]
[328469760,1717423843835,-153.15,0.000275,3]
[328469762,1717423843846,-153.15,0.000275,3]
[328469764,1717423843855,-153.15,0.000275,3]
[328469766,1717423843864,-153.15,0.000275,3]
[328469768,1717423843875,-153.15,0.000275,3]
[328469769,1717423843886,-153.15,0.000275,3]
[328469772,1717423843896,-157.12445498,0.00027518,2]
[328469774,1717423843905,-154.11931949,0.00027547,2]
[328469776,1717423843916,-863.50424233,0.00027548,2]
[328469778,1717423843925,-157.12445498,0.00027563,2]
[328469780,1717423843935,-267.66,0.00027592,2]
[328469782,1717423843944,-392.72931506,0.00027592,2]
[328470011,1717423846267,-500.0,0.0002474,2]
[328470013,1717423846276,-107.27068494,0.00027592,2]
[328470015,1717423846286,-227.82,0.00027592,2]
[328470017,1717423846295,-320.63,0.00027592,2]
[328470019,1717423846305,-500.0,0.00027592,2]
[328470021,1717423846314,-647.14,0.00027592,2]
[328470023,1717423846324,-500.0,0.00027592,2]
[328470025,1717423846332,-500.0,0.00027592,2]
[328470027,1717423846342,-500.0,0.00027592,2]
[328470029,1717423846351,-500.0,0.00027592,2]
[328470031,1717423846360,-500.0,0.00027592,2]
[328470033,1717423846369,-500.0,0.00027592,2]
[328470035,1717423846379,-370.28,0.00027592,2]
[328470037,1717423846389,-500.0,0.00027592,2]
[328470039,1717423846399,-500.0,0.00027592,2]
[328470041,1717423846408,-182.77403296,0.00027599,2]
[328470043,1717423846418,-476.53588029,0.00027634,2]
[328470044,1717423846427,-157.12445498,0.0002771,2]
[328470046,1717423846436,-166.666666,0.00027749,2]
[328470048,1717423846445,-500.0,0.00027866,2]
[328470050,1717423846455,-500.0,0.00027866,2]
[328470053,1717423846464,-344.23,0.00027866,2]
[328470055,1717423846474,-500.0,0.00027866,2]
[328470056,1717423846483,-500.0,0.00027866,2]
[328470059,1717423846492,-263.07,0.00027866,2]
[328470060,1717423846502,-439.84,0.00027866,2]
[328470062,1717423846511,-282.3,0.00027866,2]
[328470065,1717423846522,-500.0,0.00027866,2]
[328470067,1717423846531,-154.11931949,0.00027872,2]
[328470069,1717423846541,-154.11931949,0.00027986,2]
[328470071,1717423846552,-1632.58,0.0002799,3]
[328470072,1717423846561,-500.0,0.00027997,2]
[328470074,1717423846571,-500.0,0.00027998,2]
[328470077,1717423846580,-500.0,0.00027998,2]
[328470078,1717423846589,-500.0,0.00027998,2]
[328470080,1717423846599,-500.0,0.00027998,2]
[328470082,1717423846608,-500.0,0.00027998,2]
[328470084,1717423846617,-500.0,0.00027998,2]
[328470086,1717423846627,-500.0,0.00027998,2]
[328470088,1717423846637,-500.0,0.00027998,2]
[328470090,1717423846646,-500.0,0.00027998,2]
[328470092,1717423846655,-500.0,0.00027998,2]
[328470094,1717423846665,-584.7025099,0.00027998,2]
[328470096,1717423846674,-500.0,0.00027998,2]
[328470098,1717423846684,-497.18599402,0.00027998,2]
[328470100,1717423846693,-500.0,0.00027998,2]
[328470102,1717423846702,-500.0,0.00027998,2]
[328470104,1717423846712,-500.0,0.00027998,2]
[328470107,1717423846721,-500.0,0.00027998,2]
[328470109,1717423846731,-500.0,0.00027998,2]
[328470110,1717423846740,-309.92813236,0.00027998,2]
[328470112,1717423846749,-500.0,0.00027998,2]
[328470114,1717423846759,-176.07805665,0.00027998,2]
[328470117,1717423846768,-500.0,0.00027998,2]
[328470119,1717423846778,-379.48,0.00027998,2]
[328470120,1717423846788,-459.97347141,0.00027999,2]
[328470122,1717423846797,-500.0,0.00027999,2]
[328470124,1717423846806,-500.0,0.00027999,2]
[328470126,1717423846815,-500.0,0.00027999,2]
[328470128,1717423846825,-500.0,0.00027999,2]
[328470130,1717423846836,-500.0,0.00027999,2]
[328470132,1717423846848,-500.0,0.00027999,2]
[328470135,1717423846857,-500.0,0.00027999,2]
[328470137,1717423846866,-500.0,0.00027999,2]
[328470139,1717423846875,-500.0,0.00027999,2]
[328470141,1717423846886,-500.0,0.00027999,2]
[328470143,1717423846895,-500.0,0.00027999,2]
[328470145,1717423846904,-592.04684681,0.00027999,2]
[328470147,1717423846913,-500.0,0.00027999,2]
[328470149,1717423846924,-500.0,0.00027999,2]
[328470151,1717423846933,-500.0,0.00027999,2]
[328470153,1717423846943,-500.0,0.00027999,2]
[328470155,1717423846953,-500.0,0.00027999,2]
[328470157,1717423846962,-500.0,0.00027999,2]
[328470160,1717423846971,-500.0,0.00027999,2]
[328470161,1717423846980,-500.0,0.00027999,2]
[328470163,1717423846989,-500.0,0.00027999,2]
[328470165,1717423846998,-157.71717594,0.00027999,2]
[328470167,1717423847007,-589.35672754,0.00027999,2]
[328470169,1717423847017,-500.0,0.00027999,2]
[328470171,1717423847026,-500.0,0.00027999,2]
[328470173,1717423847035,-629.60658982,0.00027999,2]
[328470176,1717423847045,-500.0,0.00027999,2]
[328470178,1717423847055,-500.0,0.00027999,2]
[328470180,1717423847064,-500.0,0.00027999,2]
[328470182,1717423847073,-500.0,0.00027999,2]
[328470184,1717423847082,-500.0,0.00027999,2]
[328470185,1717423847091,-638.51848853,0.00027999,2]
[328470188,1717423847100,-500.0,0.00027999,2]
[328470190,1717423847110,-500.0,0.00027999,2]
[328470191,1717423847119,-584.71450404,0.00027999,2]
[328470193,1717423847128,-500.0,0.00027999,2]
[328470195,1717423847139,-500.0,0.00027999,2]
[328470197,1717423847148,-500.0,0.00027999,2]
[328470199,1717423847157,-500.0,0.00027999,2]
[328470202,1717423847167,-485.54524694,0.00027999,2]
[328470203,1717423847176,-500.0,0.00027999,2]
[328470206,1717423847185,-500.0,0.00027999,2]
[328470207,1717423847194,-500.0,0.00027999,2]
[328470210,1717423847203,-500.0,0.00027999,2]
[328470211,1717423847213,-408.22564877,0.00027999,2]
[328470214,1717423847222,-500.0,0.00027999,2]
[328470215,1717423847231,-500.0,0.00027999,2]
[328470218,1717423847240,-500.0,0.00027999,2]
[328470219,1717423847249,-500.0,0.00027999,2]
[328470222,1717423847259,-500.0,0.00027999,2]
[328470223,1717423847268,-500.0,0.00027999,2]
[328470226,1717423847278,-500.0,0.00027999,2]
[328470228,1717423847287,-500.0,0.00027999,2]
[328470230,1717423847297,-500.0,0.00027999,2]
[328470232,1717423847306,-500.0,0.00027999,2]
[328470234,1717423847316,-500.0,0.00027999,2]
[328470236,1717423847325,-500.0,0.00027999,2]
[328470238,1717423847334,-500.0,0.00027999,2]
[328470240,1717423847344,-500.0,0.00027999,2]
[328470242,1717423847353,-500.0,0.00027999,2]
[328470244,1717423847362,-500.0,0.00027999,2]
[328470246,1717423847372,-500.0,0.00027999,2]
[328470248,1717423847381,-500.0,0.00027999,2]
[328470249,1717423847391,-500.0,0.00027999,2]
[328470252,1717423847400,-500.0,0.00027999,2]
[328470254,1717423847410,-500.0,0.00027999,2]
[328470256,1717423847419,-500.0,0.00027999,2]
[328470257,1717423847428,-442.32577643,0.00027999,2]
[328470259,1717423847438,-500.0,0.00027999,2]
[328470261,1717423847447,-500.0,0.00027999,2]
[328470263,1717423847456,-500.0,0.00027999,2]
[328470265,1717423847466,-500.0,0.00027999,2]
[328470267,1717423847475,-197.13148774,0.00027999,2]
[328470269,1717423847484,-500.0,0.00027999,2]
[328470271,1717423847494,-500.0,0.00027999,2]
[328470273,1717423847503,-500.0,0.00027999,2]
[328470275,1717423847513,-500.0,0.00027999,2]
[328470277,1717423847522,-200.0,0.00027999,2]
[328470279,1717423847531,-500.0,0.00027999,2]
[328470281,1717423847541,-500.0,0.00027999,2]
[328470283,1717423847550,-500.0,0.00027999,2]
[328470285,1717423847559,-500.0,0.00027999,2]
[328470287,1717423847569,-400.0,0.00027999,2]
[328470289,1717423847578,-500.0,0.00027999,2]
[328470291,1717423847587,-500.0,0.00027999,2]
[328470293,1717423847596,-205.66357409,0.00027999,2]